[Event "Championnat du monde jeunes U10"]
[Date "2024.11.19"]
[White "Llari, Marc"]
[Black "Andre, Tomas"]
[WhiteElo "2201"]
[BlackElo "1928"]
[Round "5.3"]
[Result "1-0"]
[TimeControl "5400+30"]

1. e4 {[%clk 1:30:59]} 1... e5 {[%clk 1:30:47]} 2. Nf3 {[%clk 1:31:24]} 2... Nc6
{[%clk 1:31:11]} 3. d4 {[%clk 1:31:50]} 3... exd4 {[%clk 1:31:26]} 4. Nxd4
{[%clk 1:32:15]} 4... Nf6 {[%clk 1:31:23]} 5. Nxc6 {[%clk 1:32:38]} 5... bxc6
{[%clk 1:31:48]} 6. Qe2 {[%clk 1:33:02]} 6... Be7 {[%clk 1:28:12]} 7. e5 {[%clk
1:26:23]} 7... Nd5 {[%clk 1:28:31]} 8. c4 {[%clk 1:22:15]} 8... Nb6 9. Qg4
{[%clk 1:19:47]} 9... g6 {[%clk 1:21:44]} 10. Bh6 d5 {[%clk 1:20:23]} 11. Qg3
{[%clk 1:16:00]} 11... Bf8 {[%clk 1:17:35]} 12. Bxf8 {[%clk 1:12:41]} 12... Kxf8
{[%clk 1:17:10]} 13. Bd3 {[%clk 1:10:06]} 13... Kg7 {[%clk 1:15:54]} 14. O-O
{[%clk 1:09:53]} 14... h5 {[%clk 1:14:20]} 15. Nd2 {[%clk 1:04:26]} 15... h4
{[%clk 1:08:55]} 16. Qe3 Be6 17. b3 {[%clk 0:57:30]} 17... Rh5 {[%clk 1:02:36]}
18. Rad1 {[%clk 0:53:05]} 18... d4 {[%clk 1:01:43]} 19. Qe2 {[%clk 0:51:21]}
19... Nd7 {[%clk 0:58:47]} 20. f4 {[%clk 0:49:56]} 20... Nc5 {[%clk 0:56:52]}
21. Ne4 {[%clk 0:46:56]} 21... Nxe4 {[%clk 0:54:47]} 22. Qxe4 {[%clk 0:45:05]}
22... c5 {[%clk 0:50:15]} 23. Qc6 {[%clk 0:43:51]} 23... Qf8 {[%clk 0:47:33]}
24. Qxc7 {[%clk 0:40:18]} 24... Rc8 {[%clk 0:47:23]} 25. Qa5 {[%clk 0:36:57]}
25... Bf5 {[%clk 0:46:13]} 26. Bxf5 {[%clk 0:35:22]} 26... gxf5 {[%clk 0:46:14]}
27. Rf2 {[%clk 0:34:29]} 27... Rc6 {[%clk 0:45:44]} 28. Qxa7 {[%clk 0:33:46]}
28... Rg6 {[%clk 0:44:54]} 29. Qb7 {[%clk 0:31:08]} 29... Kh7 {[%clk 0:43:45]}
30. b4 {[%clk 0:29:12]} 30... cxb4 {[%clk 0:41:31]} 31. Rxd4 {[%clk 0:28:34]}
31... Qg8 {[%clk 0:41:15]} 32. Rd7 {[%clk 0:26:59]} 32... h3 {[%clk 0:41:04]}
33. Rxf7+ {[%clk 0:25:44]} 33... Kh8 {[%clk 0:41:32]} 34. g3 {[%clk 0:25:20]}
34... b3 {[%clk 0:39:07]} 35. axb3 {[%clk 0:24:17]} 35... Qd8 {[%clk 0:38:47]}
36. Qf3 {[%clk 0:24:05]} 36... Rhh6 {[%clk 0:38:39]} 37. Qd5 {[%clk 0:22:46]}
37... Qg8 {[%clk 0:38:24]} 38. Kh1 {[%clk 0:21:08]} 38... Ra6 {[%clk 0:37:44]}
39. Rf1 {[%clk 0:20:34]} 39... Ra5 {[%clk 0:37:06]} 40. Qxa5 {[%clk 0:19:27]}
40... Qxf7 {[%clk 0:37:31]} 41. Qd5 {[%clk 0:19:48]} 41... Qc7 {[%clk 0:36:59]}
42. e6 {[%clk 0:19:43]} 42... Rf6 {[%clk 0:36:25]} 43. Ra1 {[%clk 0:19:19]}
43... Rxe6 {[%clk 0:35:24]} 44. Qxe6 {[%clk 0:18:43]} 44... Qb7+ {[%clk
0:35:39]} 45. Qd5 {[%clk 0:19:08]} 1-0

[Variant "Standard"]
[Site "Europe Echecs"]

[Event "Championnat du monde jeunes U10"]
[Date "2024.11.19"]
[White "Tulegen, Ramazan"]
[Black "Kolodziejczyk, Boris"]
[WhiteElo "1818"]
[BlackElo "2115"]
[Round "5.4"]
[Result "0-1"]
[TimeControl "5400+30"]

1. e4 {[%clk 1:30:56]} 1... c5 {[%clk 1:30:48]} 2. Nf3 {[%clk 1:31:19]} 2... Nc6
{[%clk 1:31:13]} 3. d4 {[%clk 1:31:37]} 3... cxd4 {[%clk 1:31:14]} 4. Nxd4
{[%clk 1:32:00]} 4... Nf6 {[%clk 1:31:31]} 5. Nc3 {[%clk 1:32:22]} 5... e5
{[%clk 1:31:47]} 6. Ndb5 {[%clk 1:32:40]} 6... d6 {[%clk 1:32:07]} 7. Bg5 {[%clk
1:33:00]} 7... a6 {[%clk 1:32:31]} 8. Na3 {[%clk 1:33:23]} 8... b5 {[%clk
1:32:54]} 9. Bxf6 {[%clk 1:33:45]} 9... gxf6 {[%clk 1:33:13]} 10. Nd5 {[%clk
1:34:08]} 10... f5 {[%clk 1:32:18]} 11. Bxb5 {[%clk 1:34:22]} 11... axb5 {[%clk
1:32:11]} 12. Nxb5 {[%clk 1:34:45]} 12... Ra4 {[%clk 1:31:11]} 13. Nbc7+ {[%clk
1:34:36]} 13... Kd7 {[%clk 1:29:46]} 14. O-O {[%clk 1:34:45]} 14... Rg8 {[%clk
1:28:35]} 15. Qh5 {[%clk 1:30:40]} 15... Qg5 {[%clk 1:23:54]} 16. Qxf7+ {[%clk
1:30:44]} 16... Be7 {[%clk 1:22:40]} 17. g3 {[%clk 1:20:30]} 17... Qg6 {[%clk
1:16:51]} 18. Qxg6 {[%clk 1:05:38]} 18... hxg6 {[%clk 1:14:39]} 19. Nb6+ {[%clk
1:02:01]} 19... Kxc7 {[%clk 1:14:59]} 20. Nxa4 {[%clk 1:02:20]} 20... fxe4
{[%clk 1:07:30]} 21. Nc3 {[%clk 1:02:42]} 21... Nd4 {[%clk 1:06:52]} 22. Nxe4
{[%clk 0:44:40]} 22... Bb7 {[%clk 1:04:45]} 23. Rfe1 {[%clk 0:32:03]} 23... Nf3+
24. Kg2 {[%clk 0:32:24]} 24... Nxe1+ {[%clk 1:03:03]} 25. Rxe1 {[%clk 0:32:45]}
25... Ra8 {[%clk 1:02:11]} 26. a3 {[%clk 0:32:28]} 26... Ra4 {[%clk 0:56:09]}
27. f3 {[%clk 0:31:13]} 27... Rd4 {[%clk 0:48:46]} 28. Re2 {[%clk 0:18:03]}
28... Ba6 {[%clk 0:39:26]} 29. Re3 {[%clk 0:10:58]} 29... d5 {[%clk 0:32:53]}
30. Rc3+ {[%clk 0:09:12]} 30... Kd8 {[%clk 0:30:59]} 31. Nf2 {[%clk 0:05:20]}
31... Rd2 {[%clk 0:27:19]} 32. b4 {[%clk 0:03:11]} 32... Bb5 {[%clk 0:26:26]}
33. Re3 {[%clk 0:02:19]} 33... Bf6 {[%clk 0:25:14]} 34. c3 {[%clk 0:02:04]}
34... Ra2 {[%clk 0:23:52]} 35. Kg1 {[%clk 0:01:14]} 35... Ra1+ {[%clk 0:23:49]}
0-1

[Variant "Standard"]
[Site "Europe Echecs"]

[Event "Championnat du monde jeunes U10"]
[Date "2024.11.19"]
[White "Bolashakov, Nurali"]
[Black "Zhu, Linxi"]
[WhiteElo "2005"]
[BlackElo "2100"]
[Round "5.5"]
[Result "1-0"]
[TimeControl "5400+30"]

1. e4 {[%clk 1:30:53]} 1... c5 {[%clk 1:30:51]} 2. Nf3 {[%clk 1:31:17]} 2... Nc6
{[%clk 1:30:49]} 3. d4 {[%clk 1:31:29]} 3... cxd4 {[%clk 1:31:10]} 4. Nxd4
{[%clk 1:31:40]} 4... g6 {[%clk 1:31:30]} 5. Nc3 {[%clk 1:31:32]} 5... Bg7
{[%clk 1:31:53]} 6. Be3 {[%clk 1:31:30]} 6... Nf6 {[%clk 1:32:14]} 7. Nxc6
{[%clk 1:30:49]} 7... bxc6 {[%clk 1:32:35]} 8. e5 {[%clk 1:30:44]} 8... Ng8
{[%clk 1:32:52]} 9. Bd4 {[%clk 1:29:33]} 9... Qa5 {[%clk 1:30:20]} 10. e6 {[%clk
1:26:50]} 10... Nf6 {[%clk 1:22:01]} 11. exd7+ {[%clk 1:23:14]} 11... Bxd7
{[%clk 1:22:22]} 12. Bc4 {[%clk 1:13:58]} 12... O-O {[%clk 1:15:48]} 13. O-O
{[%clk 1:12:28]} 13... Rad8 {[%clk 1:11:56]} 14. Qe2 {[%clk 1:01:58]} 14... Rfe8
{[%clk 0:58:16]} 15. Rad1 {[%clk 0:54:45]} 15... Bf5 {[%clk 0:49:47]} 16. Bb3
{[%clk 0:50:14]} 16... e5 {[%clk 0:40:00]} 17. Be3 {[%clk 0:49:57]} 17... Qb4
{[%clk 0:37:18]} 18. Qa6 {[%clk 0:38:20]} 18... Ra8 {[%clk 0:28:26]} 19. Qxc6
{[%clk 0:32:12]} 19... Rec8 {[%clk 0:23:00]} 20. Qa6 {[%clk 0:26:39]} 20... Qh4
{[%clk 0:18:33]} 21. Nd5 {[%clk 0:21:43]} 21... Nxd5 {[%clk 0:12:37]} 22. Bxd5
{[%clk 0:21:47]} 22... Rab8 {[%clk 0:12:58]} 23. Bxa7 {[%clk 0:19:55]} 23...
Rxb2 {[%clk 0:12:19]} 24. Bb3 {[%clk 0:19:25]} 24... Qe7 {[%clk 0:10:54]} 25.
Be3 {[%clk 0:18:22]} 25... Qc7 {[%clk 0:05:22]} 26. Qa3 {[%clk 0:14:12]} 26...
e4 {[%clk 0:05:44]} 27. h3 {[%clk 0:12:10]} 27... h5 {[%clk 0:05:13]} 28. Qa6
{[%clk 0:08:25]} 28... Be5 {[%clk 0:02:54]} 29. Rd5 {[%clk 0:05:48]} 29... Re8
{[%clk 0:01:58]} 30. Rfd1 {[%clk 0:03:55]} 30... Bg7 {[%clk 0:01:02]} 31. Qb5
{[%clk 0:01:59]} 31... Ra8 {[%clk 0:00:57]} 32. Rxf5 {[%clk 0:01:27]} 32... gxf5
{[%clk 0:01:20]} 33. Qxf5 {[%clk 0:01:53]} 33... Rf8 {[%clk 0:00:42]} 34. Qxe4
{[%clk 0:01:37]} 34... Rd8 {[%clk 0:00:56]} 35. Rf1 {[%clk 0:01:33]} 35... Qe5
{[%clk 0:01:05]} 36. Qb7 {[%clk 0:01:24]} 36... Qf5 {[%clk 0:01:08]} 37. Bc1
{[%clk 0:01:21]} 37... Rb1 {[%clk 0:01:33]} 38. Bxf7+ {[%clk 0:01:43]} 38...
Qxf7 {[%clk 0:01:54]} 39. Qxb1 {[%clk 0:02:08]} 39... Qf5 {[%clk 0:02:12]} 40.
Be3 {[%clk 0:01:55]} 40... Rc8 {[%clk 0:02:38]} 41. Qb3+ {[%clk 0:02:20]} 41...
Kh8 {[%clk 0:03:03]} 42. c4 {[%clk 0:02:39]} 42... Qe4 {[%clk 0:03:28]} 43. Qd1
{[%clk 0:02:34]} 43... Qg6 {[%clk 0:03:46]} 44. Qd5 {[%clk 0:02:44]} 44... Rg8
{[%clk 0:03:09]} 45. Bd4 {[%clk 0:02:44]} 45... Bxd4 {[%clk 0:03:31]} 46. Qxd4+
{[%clk 0:03:10]} 46... Kh7 {[%clk 0:03:57]} 47. Qd5 {[%clk 0:03:34]} 47... h4
{[%clk 0:04:22]} 48. Re1 {[%clk 0:03:40]} 48... Rf8 {[%clk 0:03:49]} 49. Qe4
{[%clk 0:03:52]} 49... Qxe4 {[%clk 0:04:00]} 50. Rxe4 {[%clk 0:04:15]} 50... Rd8
{[%clk 0:04:27]} 51. Rxh4+ {[%clk 0:04:39]} 51... Kg8 {[%clk 0:04:51]} 52. c5
{[%clk 0:04:54]} 52... Rd1+ {[%clk 0:05:18]} 53. Kh2 {[%clk 0:05:20]} 53... Rd2
{[%clk 0:05:47]} 54. Rc4 {[%clk 0:05:40]} 54... Rxa2 {[%clk 0:06:12]} 55. c6
{[%clk 0:06:06]} 55... Ra8 {[%clk 0:06:39]} 56. c7 {[%clk 0:06:29]} 56... Rc8
{[%clk 0:07:07]} 57. h4 {[%clk 0:06:49]} 57... Kg7 {[%clk 0:07:34]} 58. Rc6
{[%clk 0:07:10]} 58... Kh7 {[%clk 0:08:01]} 59. g4 {[%clk 0:07:30]} 59... Kg7
{[%clk 0:08:28]} 60. h5 {[%clk 0:07:54]} 60... Kh7 {[%clk 0:08:55]} 61. g5
{[%clk 0:07:51]} 61... Kg7 {[%clk 0:09:22]} 62. Kg3 {[%clk 0:08:15]} 62... Kh7
{[%clk 0:09:49]} 63. h6 {[%clk 0:08:19]} 63... Kh8 {[%clk 0:10:15]} 64. g6
{[%clk 0:08:42]} 64... Kg8 {[%clk 0:10:41]} 65. Rd6 {[%clk 0:09:03]} 1-0

[Variant "Standard"]
[Site "Europe Echecs"]

[Event "Championnat du monde jeunes U10"]
[Date "2024.11.19"]
[White "Zhang, Junyi"]
[Black "Nguyen Quang Anh"]
[WhiteElo "2061"]
[BlackElo "1889"]
[Round "5.6"]
[Result "1-0"]
[TimeControl "5400+30"]

1. e4 {[%clk 1:31:00]} 1... e6 {[%clk 1:30:27]} 2. d4 d5 {[%clk 1:30:43]} 3. e5
{[%clk 1:31:58]} 3... c5 {[%clk 1:30:48]} 4. c3 {[%clk 1:32:27]} 4... Nc6 {[%clk
1:30:53]} 5. Nf3 {[%clk 1:32:47]} 5... Qb6 {[%clk 1:30:20]} 6. a3 {[%clk
1:33:15]} 6... cxd4 {[%clk 1:29:59]} 7. cxd4 {[%clk 1:33:27]} 7... Nh6 {[%clk
1:29:21]} 8. Bd3 {[%clk 1:32:12]} 8... Bd7 {[%clk 1:19:37]} 9. Bc2 {[%clk
1:31:57]} 9... Na5 {[%clk 1:15:31]} 10. O-O {[%clk 1:30:20]} 10... g6 {[%clk
1:13:16]} 11. Nc3 {[%clk 1:12:18]} 11... Nf5 {[%clk 1:10:21]} 12. g4 {[%clk
1:08:09]} 12... Ne7 {[%clk 1:09:47]} 13. b4 {[%clk 1:06:20]} 13... Nc4 {[%clk
1:05:51]} 14. Bg5 {[%clk 1:06:34]} 14... h5 {[%clk 0:59:29]} 15. Bf6 {[%clk
1:04:48]} 15... hxg4 {[%clk 0:42:01]} 16. Bxh8 {[%clk 0:56:44]} 16... gxf3
{[%clk 0:42:16]} 17. Na4 {[%clk 0:57:11]} 17... Qc7 {[%clk 0:38:54]} 18. Nc5
{[%clk 0:51:53]} 18... Ng8 {[%clk 0:33:26]} 19. Nxd7 {[%clk 0:48:00]} 19... Qxd7
{[%clk 0:33:27]} 20. Re1 {[%clk 0:48:12]} 20... Qe7 {[%clk 0:24:08]} 21. Ba4+
{[%clk 0:47:33]} 21... Kd8 {[%clk 0:24:22]} 22. Qxf3 {[%clk 0:47:28]} 22... Qg5+
{[%clk 0:24:29]} 23. Kh1 {[%clk 0:47:50]} 23... Ke7 {[%clk 0:24:45]} 24. Rac1
{[%clk 0:43:09]} 24... Rc8 {[%clk 0:23:19]} 25. Bb5 {[%clk 0:42:18]} 25... Qf5
{[%clk 0:15:40]} 26. Qg2 {[%clk 0:38:39]} 26... Rc7 {[%clk 0:14:51]} 27. Bxc4
{[%clk 0:37:35]} 27... dxc4 {[%clk 0:15:15]} 28. d5 {[%clk 0:38:04]} 28... exd5
{[%clk 0:15:18]} 29. Qxd5 {[%clk 0:37:30]} 29... Qd7 {[%clk 0:14:47]} 30. Bf6+
{[%clk 0:36:59]} 30... Ke8 {[%clk 0:15:05]} 31. Qxd7+ {[%clk 0:34:58]} 31...
Kxd7 {[%clk 0:13:15]} 32. Bg5 {[%clk 0:32:20]} 32... Ke6 {[%clk 0:12:31]} 33.
Kg2 {[%clk 0:31:14]} 33... Kf5 {[%clk 0:11:35]} 34. Be3 {[%clk 0:30:50]} 34...
b5 {[%clk 0:11:21]} 35. Rcd1 {[%clk 0:30:25]} 35... Be7 {[%clk 0:10:27]} 36. Rd5
{[%clk 0:29:58]} 36... Rb7 {[%clk 0:10:12]} 37. Bc5 {[%clk 0:28:05]} 37... Ke6
{[%clk 0:09:40]} 38. Red1 {[%clk 0:28:29]} 38... Nh6 {[%clk 0:07:39]} 39. Bxe7
{[%clk 0:27:22]} 39... Kxe7 {[%clk 0:07:56]} 40. Rc5 {[%clk 0:27:39]} 40... Nf5
{[%clk 0:07:52]} 41. Rdd5 {[%clk 0:27:45]} 41... a6 {[%clk 0:07:33]} 42. Rc6
{[%clk 0:27:39]} 42... Ra7 {[%clk 0:07:56]} 43. a4 {[%clk 0:27:51]} 43... g5
{[%clk 0:07:01]} 44. Kf3 {[%clk 0:25:29]} 44... Rb7 {[%clk 0:05:00]} 45. Kg4
{[%clk 0:25:30]} 45... Ng7 {[%clk 0:05:20]} 46. a5 {[%clk 0:24:45]} 46... Ne6
{[%clk 0:05:16]} 47. Rdd6 {[%clk 0:20:59]} 47... Nd8 {[%clk 0:04:33]} 48. Rc8
{[%clk 0:20:41]} 48... Rd7 {[%clk 0:04:21]} 49. Rxa6 {[%clk 0:19:34]} 49... Rd4+
{[%clk 0:04:27]} 50. Kg3 {[%clk 0:19:32]} 50... Kd7 {[%clk 0:04:31]} 51. Rc5
{[%clk 0:15:32]} 51... Ne6 {[%clk 0:04:14]} 52. Ra7+ {[%clk 0:15:37]} 52... Ke8
{[%clk 0:04:08]} 53. Rc8+ {[%clk 0:15:42]} 53... Rd8 {[%clk 0:04:32]} 54. Rxd8+
{[%clk 0:14:24]} 54... Kxd8 {[%clk 0:04:56]} 55. Rxf7 {[%clk 0:14:12]} 55... c3
{[%clk 0:04:49]} 56. a6 {[%clk 0:07:33]} 56... c2 {[%clk 0:04:40]} 57. a7 {[%clk
0:07:58]} 57... Nc7 {[%clk 0:05:07]} 58. Rxc7 {[%clk 0:08:11]} 58... Kxc7 {[%clk
0:05:27]} 59. a8=Q {[%clk 0:08:18]} 59... c1=Q {[%clk 0:05:44]} 60. Qa7+ {[%clk
0:08:22]} 60... Kd8 {[%clk 0:06:05]} 61. Qb6+ {[%clk 0:08:44]} 61... Ke8 {[%clk
0:06:14]} 62. Qxb5+ {[%clk 0:09:07]} 62... Kf7 {[%clk 0:06:28]} 63. Qd5+ {[%clk
0:09:11]} 63... Kg7 {[%clk 0:06:47]} 64. Kg2 {[%clk 0:07:42]} 64... Qf4 {[%clk
0:07:07]} 65. e6 {[%clk 0:06:40]} 65... Qxb4 {[%clk 0:06:38]} 66. Qxg5+ {[%clk
0:07:04]} 66... Kh7 {[%clk 0:06:59]} 67. Qf5+ {[%clk 0:06:55]} 67... Kg8 {[%clk
0:07:15]} 68. Qd5 {[%clk 0:06:09]} 68... Kh8 {[%clk 0:07:23]} 69. h3 {[%clk
0:05:52]} 69... Kg7 {[%clk 0:07:26]} 70. Qe5+ {[%clk 0:06:11]} 70... Kh7 {[%clk
0:07:21]} 71. e7 {[%clk 0:05:57]} 71... Qb7+ {[%clk 0:07:45]} 72. Kh2 {[%clk
0:06:23]} 72... Qf3 {[%clk 0:08:08]} 73. Qe3 {[%clk 0:06:12]} 73... Qf6 {[%clk
0:07:58]} 74. e8=Q {[%clk 0:06:23]} 74... Qd6+ {[%clk 0:08:23]} 75. Q8e5 {[%clk
0:06:40]} 1-0

[Variant "Standard"]
[Site "Europe Echecs"]

[Event "Championnat du monde jeunes U10"]
[Date "2024.11.19"]
[White "Perez Solanas, Hugo"]
[Black "Zuo, Junyu"]
[WhiteElo "1824"]
[BlackElo "2120"]
[Round "5.7"]
[Result "1/2-1/2"]
[TimeControl "5400+30"]

1. e4 {[%clk 1:30:58]} 1... c5 {[%clk 1:30:40]} 2. Nf3 {[%clk 1:31:21]} 2... e6
{[%clk 1:30:35]} 3. d4 {[%clk 1:31:42]} 3... cxd4 {[%clk 1:30:48]} 4. Nxd4
{[%clk 1:32:03]} 4... Nc6 {[%clk 1:30:49]} 5. Nc3 {[%clk 1:32:18]} 5... Qc7
{[%clk 1:30:42]} 6. Ncb5 {[%clk 1:32:35]} 6... Qb8 {[%clk 1:30:27]} 7. Bd3
{[%clk 1:32:53]} 7... Nf6 {[%clk 1:29:01]} 8. O-O {[%clk 1:32:46]} 8... a6
{[%clk 1:25:28]} 9. Nxc6 {[%clk 1:32:57]} 9... bxc6 {[%clk 1:25:47]} 10. Nc3
{[%clk 1:33:13]} 10... Be7 {[%clk 1:25:05]} 11. Qe2 {[%clk 1:30:18]} 11... d6
{[%clk 1:24:29]} 12. b3 {[%clk 1:24:19]} 12... O-O {[%clk 1:23:52]} 13. Bb2
{[%clk 1:22:52]} 13... e5 {[%clk 1:20:38]} 14. Rae1 {[%clk 1:20:15]} 14... Bg4
{[%clk 1:17:55]} 15. f3 {[%clk 1:06:53]} 15... Be6 {[%clk 1:15:03]} 16. f4
{[%clk 0:53:50]} 16... exf4 {[%clk 1:07:26]} 17. Rxf4 {[%clk 0:52:14]} 17... Re8
{[%clk 1:02:11]} 18. Kh1 {[%clk 0:42:54]} 18... a5 {[%clk 0:57:16]} 19. Na4
{[%clk 0:38:54]} 19... Nd7 {[%clk 0:37:50]} 20. Ref1 {[%clk 0:29:04]} 20... Nf8
{[%clk 0:16:53]} 21. Bc4 {[%clk 0:18:25]} 21... d5 {[%clk 0:10:20]} 22. exd5
{[%clk 0:17:27]} 22... cxd5 {[%clk 0:10:44]} 23. Qf3 {[%clk 0:14:02]} 23... f6
{[%clk 0:07:03]} 24. Bxd5 {[%clk 0:13:17]} 24... Ra6 {[%clk 0:06:57]} 25. Rg4
{[%clk 0:07:58]} 25... Kh8 {[%clk 0:05:31]} 26. Bxe6 {[%clk 0:05:51]} 26... Rxe6
{[%clk 0:05:46]} 27. Rd4 {[%clk 0:04:23]} 27... Bd6 {[%clk 0:05:11]} 28. h3
{[%clk 0:03:22]} 28... Ng6 {[%clk 0:05:00]} 29. Nc3 {[%clk 0:02:42]} 29... Re3
{[%clk 0:04:44]} 30. Qd1 {[%clk 0:02:30]} 30... Bg3 {[%clk 0:04:45]} 31. Qg4 Qc7
{[%clk 0:01:56]} 32. Re4 {[%clk 0:01:36]} 32... R3xe4 {[%clk 0:01:28]} 33. Nxe4
{[%clk 0:01:59]} 33... Bf4 {[%clk 0:01:31]} 34. Nc3 {[%clk 0:01:50]} 34... Bd2
{[%clk 0:01:01]} 35. Qf3 {[%clk 0:00:47]} 35... Ne5 {[%clk 0:01:14]} 36. Qg3
{[%clk 0:00:52]} 36... Rc8 {[%clk 0:00:56]} 37. Rd1 {[%clk 0:00:56]} 37... Bh6
{[%clk 0:01:05]} 38. Qf2 {[%clk 0:00:44]} 38... Bg5 {[%clk 0:00:54]} 39. Qd4
{[%clk 0:00:54]} 39... h5 {[%clk 0:01:17]} 1/2-1/2

[Variant "Standard"]
[Site "Europe Echecs"]

[Event "Championnat du monde jeunes U10"]
[Date "2024.11.19"]
[White "Shangin, Lev"]
[Black "Jani, Aakash"]
[WhiteElo "2056"]
[BlackElo "1810"]
[Round "5.8"]
[Result "0-1"]
[TimeControl "5400+30"]

1. d4 {[%clk 1:30:35]} 1... Nf6 {[%clk 1:30:32]} 2. c4 {[%clk 1:30:24]} 2... g6
{[%clk 1:30:21]} 3. Nc3 {[%clk 1:30:00]} 3... Bg7 {[%clk 1:29:49]} 4. e4 {[%clk
1:29:20]} 4... d6 {[%clk 1:29:29]} 5. Nf3 {[%clk 1:29:04]} 5... O-O {[%clk
1:28:21]} 6. Be2 {[%clk 1:29:00]} 6... e5 {[%clk 1:27:25]} 7. O-O {[%clk
1:29:18]} 7... exd4 {[%clk 1:25:16]} 8. Nxd4 {[%clk 1:28:29]} 8... Re8 {[%clk
1:24:14]} 9. f3 {[%clk 1:21:29]} 9... c6 {[%clk 1:22:39]} 10. Nc2 {[%clk
1:15:55]} 10... Na6 {[%clk 1:21:57]} 11. Be3 {[%clk 1:14:21]} 11... Nc7 12. Qd2
{[%clk 1:09:42]} 12... Be6 {[%clk 1:16:52]} 13. Rad1 {[%clk 1:03:59]} 13... d5
{[%clk 1:16:05]} 14. exd5 {[%clk 1:00:10]} 14... cxd5 {[%clk 1:16:22]} 15. c5
{[%clk 1:00:34]} 15... Qe7 {[%clk 1:14:04]} 16. Bf2 {[%clk 0:57:00]} 16... Rad8
{[%clk 1:12:16]} 17. Nd4 {[%clk 0:56:39]} 17... Nd7 {[%clk 1:07:45]} 18. b4
{[%clk 0:50:24]} 18... Ne5 {[%clk 1:06:29]} 19. Ndb5 {[%clk 0:48:05]} 19... Nxb5
{[%clk 1:00:02]} 20. Nxb5 {[%clk 0:48:03]} 20... Nc4 {[%clk 0:59:13]} 21. Bxc4
{[%clk 0:42:47]} 21... dxc4 {[%clk 0:59:36]} 22. Qc2 {[%clk 0:42:43]} 22... Be5
{[%clk 0:48:53]} 23. Bg3 {[%clk 0:30:18]} 23... Bxg3 {[%clk 0:45:32]} 24. hxg3
{[%clk 0:30:15]} 24... b6 {[%clk 0:44:47]} 25. Nd6 {[%clk 0:28:26]} 25... Rf8
{[%clk 0:45:06]} 26. Qc3 {[%clk 0:26:56]} 26... a6 {[%clk 0:42:29]} 27. Rfe1
{[%clk 0:22:57]} 27... a5 {[%clk 0:35:43]} 28. a3 {[%clk 0:20:21]} 28... axb4
{[%clk 0:34:06]} 29. axb4 {[%clk 0:20:45]} 29... bxc5 {[%clk 0:34:16]} 30. bxc5
{[%clk 0:21:09]} 30... Rb8 {[%clk 0:28:42]} 31. Qxc4 {[%clk 0:17:49]} 31... Qxd6
{[%clk 0:28:30]} 32. Rxd6 {[%clk 0:15:44]} 32... Bxc4 {[%clk 0:28:53]} 33. Rc1
{[%clk 0:15:20]} 33... Bb5 {[%clk 0:28:05]} 34. Kf2 {[%clk 0:14:13]} 34... Rfc8
{[%clk 0:26:17]} 35. g4 {[%clk 0:12:43]} 35... Rc6 {[%clk 0:25:36]} 36. Kg3
{[%clk 0:11:43]} 36... Rxd6 {[%clk 0:25:34]} 37. cxd6 {[%clk 0:12:04]} 37... Rd8
{[%clk 0:23:56]} 38. Rd1 {[%clk 0:12:05]} 38... f6 {[%clk 0:23:50]} 39. Kf4
{[%clk 0:11:09]} 39... Kf7 {[%clk 0:24:14]} 40. g5 {[%clk 0:07:15]} 40... Bc6
{[%clk 0:22:09]} 41. gxf6 {[%clk 0:06:30]} 41... Kxf6 {[%clk 0:22:26]} 42. Kg4
{[%clk 0:04:32]} 42... Bd7+ {[%clk 0:22:13]} 43. Kf4 {[%clk 0:04:38]} 43... g5+
{[%clk 0:21:09]} 44. Kg3 {[%clk 0:04:56]} 44... Bf5 {[%clk 0:21:17]} 45. Ra1
{[%clk 0:03:40]} 45... Rxd6 {[%clk 0:21:39]} 46. Ra7 {[%clk 0:03:43]} 46... h5
{[%clk 0:21:17]} 47. Ra8 {[%clk 0:03:28]} 47... h4+ {[%clk 0:21:26]} 48. Kh2
{[%clk 0:03:38]} 48... Ke5 {[%clk 0:19:20]} 49. Ra5+ {[%clk 0:03:27]} 49... Rd5
{[%clk 0:19:28]} 50. Ra4 {[%clk 0:03:23]} 50... Rd4 {[%clk 0:18:14]} 51. Ra2
{[%clk 0:03:07]} 51... Kf4 {[%clk 0:18:33]} 52. Re2 {[%clk 0:02:53]} 52... h3
{[%clk 0:18:19]} 53. gxh3 {[%clk 0:02:50]} 53... Rd3 {[%clk 0:17:28]} 54. Ra2
{[%clk 0:00:32]} 54... Kxf3 {[%clk 0:17:29]} 55. Rg2 Kf4 {[%clk 0:17:30]} 56.
Rf2+ {[%clk 0:00:31]} 56... Rf3 {[%clk 0:19:43]} 57. Ra2 {[%clk 0:00:54]} 57...
Rxh3+ {[%clk 0:20:00]} 58. Kg2 {[%clk 0:01:01]} 58... Re3 {[%clk 0:20:18]} 59.
Ra4+ {[%clk 0:01:06]} 59... Be4+ {[%clk 0:20:41]} 60. Kf2 {[%clk 0:01:15]} 60...
g4 {[%clk 0:21:01]} 0-1

[Variant "Standard"]
[Site "Europe Echecs"]